fUST/lending_fUST_20250130
["ID","MTS","AMOUNT","RATE_DAILY","PERIOD"]
[350951035,1738235439977,-501.68879114,0.00018563,2]
[350951036,1738235439988,-500.0,0.00018563,2]
[350951037,1738235439999,-500.0,0.00018563,2]
[350951038,1738235440009,-290.6308622,0.00018563,2]
[350951039,1738235440019,-500.99634285,0.00018563,2]
[350951040,1738235440028,-500.0,0.00018563,2]
[350951041,1738235440039,-500.0,0.00018563,2]
[350951042,1738235440050,-500.0,0.00018563,2]
[350951043,1738235440060,-500.0,0.00018563,2]
[350951045,1738235440070,-500.0,0.00018563,2]
[350951046,1738235440079,-500.0,0.00018563,2]
[350951048,1738235440089,-783.32,0.00018563,2]
[350951050,1738235440098,-500.0,0.00018563,2]
[350951051,1738235440111,-502.32209948,0.00018563,2]
[350951052,1738235440121,-501.03429294,0.00018563,2]
[350951053,1738235440131,-500.0,0.00018563,2]
[350951054,1738235440141,-500.0,0.00018563,2]
[350951055,1738235440150,-503.10729767,0.00018563,2]
[350951056,1738235440159,-502.32749798,0.00018563,2]
[350951058,1738235440169,-500.0,0.00018563,2]
[350951059,1738235440178,-501.71599731,0.00018563,2]
[350951060,1738235440188,-595.20114,0.00018563,2]
[350951061,1738235440198,-501.94886572,0.00018563,2]
[350951062,1738235440209,-500.0,0.00018563,2]
[350951063,1738235440219,-501.7035594,0.00018563,2]
[350951070,1738235440360,-500.0,0.00018563,2]
[350951071,1738235440372,-500.0,0.00018563,2]
[350951072,1738235440382,-502.93456693,0.00018563,2]
[350951073,1738235440392,-500.0,0.00018563,2]
[350951075,1738235440402,-500.0,0.00018563,2]
[350951077,1738235440411,-500.0,0.00018563,2]
[350951079,1738235440421,-500.0,0.00018563,2]
[350951080,1738235440430,-500.0,0.00018563,2]
[350951082,1738235440440,-502.20959774,0.00018563,2]
[350951084,1738235440449,-636.63430477,0.00018563,2]
[350951085,1738235440462,-500.0,0.00018563,2]
[350951087,1738235440471,-500.0,0.00018563,2]
[350951088,1738235440480,-500.0,0.00018563,2]
[350951090,1738235440489,-500.0,0.00018563,2]
[350951092,1738235440498,-500.0,0.00018563,2]
[350951094,1738235440508,-500.0,0.00018563,2]
[350951095,1738235440517,-590.10173873,0.00018563,2]
[350951096,1738235440526,-500.0,0.00018563,2]
[350951098,1738235440536,-500.0,0.00018563,2]
[350951099,1738235440545,-502.17826537,0.00018563,2]
[350951100,1738235440555,-501.53685451,0.00018563,2]
[350951101,1738235440564,-500.94548534,0.00018563,2]
[350951102,1738235440573,-500.0,0.00018563,2]
[350951103,1738235440583,-500.0,0.00018563,2]
[350951104,1738235440593,-502.29311078,0.00018563,2]
[350951105,1738235440603,-506.00447112,0.00018563,2]
[350951106,1738235440612,-500.0,0.00018563,2]
[350951107,1738235440622,-500.0,0.00018563,2]
[350951108,1738235440631,-500.0,0.00018563,2]
[350951109,1738235440640,-500.0,0.00018563,2]
[350951110,1738235440650,-500.0,0.00018563,2]
[350951111,1738235440659,-500.0,0.00018563,2]
[350951112,1738235440668,-500.0,0.00018563,2]
[350951113,1738235440677,-500.0,0.00018563,2]
[350951114,1738235440686,-502.66383135,0.00018563,2]
[350951115,1738235440696,-500.0,0.00018563,2]
[350951116,1738235440706,-500.0,0.00018563,2]
[350951117,1738235440718,-500.0,0.00018563,2]
[350951118,1738235440727,-502.3482059,0.00018563,2]
[350951120,1738235440736,-500.0,0.00018563,2]
[350951121,1738235440746,-502.42163637,0.00018563,2]
[350951122,1738235440755,-500.0,0.00018563,2]
[350951123,1738235440766,-500.0,0.00018563,2]
[350951124,1738235440775,-500.0,0.00018563,2]
[350951125,1738235440784,-500.0,0.00018563,2]
[350951126,1738235440795,-477.85946273,0.00018563,2]
[350951127,1738235440805,-500.0,0.00018563,2]
[350951128,1738235440816,-500.0,0.00018563,2]
[350951129,1738235440827,-367.35248881,0.00018563,2]
[350951130,1738235440836,-500.0,0.00018563,2]
[350951131,1738235440846,-500.0,0.00018563,2]
[350951132,1738235440856,-500.0,0.00018563,2]
[350951133,1738235440866,-502.99724609,0.00018563,2]
[350951134,1738235440876,-500.0,0.00018563,2]
[350951135,1738235440886,-502.63095403,0.00018563,2]
[350951136,1738235440895,-500.0,0.00018563,2]
[350951137,1738235440905,-500.0,0.00018563,2]
[350951138,1738235440915,-500.0,0.00018563,2]
[350951139,1738235440925,-500.0,0.00018563,2]
[350951140,1738235440935,-500.0,0.00018563,2]
[350951141,1738235440945,-501.57824832,0.00018563,2]
[350951142,1738235440955,-500.0,0.00018563,2]
[350951143,1738235440966,-500.0,0.00018563,2]
[350951144,1738235440975,-500.98027932,0.00018563,2]
[350951145,1738235440984,-500.0,0.00018563,2]
[350951146,1738235440994,-520.73789042,0.00018563,2]
[350951147,1738235441004,-500.0,0.00018563,2]
[350951148,1738235441014,-500.0,0.00018563,2]
[350951149,1738235441025,-500.0,0.00018563,2]
[350951150,1738235441037,-500.0,0.00018563,2]
[350951151,1738235441049,-501.15220094,0.00018563,2]
[350951152,1738235441059,-500.0,0.00018563,2]
[350951153,1738235441068,-500.0,0.00018563,2]
[350951154,1738235441079,-504.59319811,0.00018563,2]
[350951155,1738235441089,-500.0,0.00018563,2]
[350951156,1738235441098,-500.0,0.00018563,2]
[350951157,1738235441108,-500.0,0.00018563,2]
[350951158,1738235441120,-500.0,0.00018563,2]
[350951159,1738235441131,-501.26315937,0.00018563,2]
[350951160,1738235441141,-585.24958813,0.00018563,2]
[350951161,1738235441151,-500.0,0.00018563,2]
[350951162,1738235441161,-1079.29,0.00018563,2]
[350951163,1738235441171,-500.0,0.00018563,2]
[350951164,1738235441181,-500.0,0.00018563,2]
[350951165,1738235441191,-500.0,0.00018563,2]
[350951166,1738235441200,-500.0,0.00018563,2]
[350951167,1738235441210,-500.0,0.00018563,2]
[350951168,1738235441219,-500.0,0.00018563,2]
[350951169,1738235441229,-502.01663874,0.00018563,2]
[350951170,1738235441238,-503.58967395,0.00018563,2]
[350951171,1738235441247,-500.0,0.00018563,2]
[350951172,1738235441256,-500.0,0.00018563,2]
[350951173,1738235441266,-501.56829494,0.00018563,2]
[350951174,1738235441275,-500.0,0.00018563,2]
[350951175,1738235441284,-500.0,0.00018563,2]
[350951176,1738235441293,-500.0,0.00018563,2]
[350951177,1738235441302,-501.84410515,0.00018563,2]
[350951178,1738235441312,-500.0,0.00018563,2]
[350951179,1738235441321,-500.0,0.00018563,2]
[350951180,1738235441331,-500.0,0.00018563,2]
[350951181,1738235441342,-500.0,0.00018563,2]
[350951182,1738235441352,-500.0,0.00018563,2]
[350951183,1738235441361,-500.0,0.00018563,2]
[350951184,1738235441372,-500.0,0.00018563,2]
[350951185,1738235441381,-530.77221042,0.00018563,2]
[350951186,1738235441391,-500.0,0.00018563,2]
[350951187,1738235441401,-500.0,0.00018563,2]
[350951188,1738235441410,-501.41277902,0.00018563,2]
[350951189,1738235441420,-500.0,0.00018563,2]
[350951190,1738235441430,-500.0,0.00018563,2]
[350951191,1738235441441,-500.0,0.00018563,2]
[350951192,1738235441450,-502.11131472,0.00018563,2]
[350951193,1738235441462,-500.0,0.00018563,2]
[350951194,1738235441474,-500.0,0.00018563,2]
[350951195,1738235441483,-500.0,0.00018563,2]
[350951196,1738235441493,-500.0,0.00018563,2]
[350951197,1738235441503,-500.0,0.00018563,2]
[350951198,1738235441512,-485.95503907,0.00018563,2]
[350951199,1738235441522,-500.0,0.00018563,2]
[350951200,1738235441532,-500.0,0.00018563,2]
[350951201,1738235441542,-500.0,0.00018563,2]
[350951202,1738235441551,-500.0,0.00018563,2]
[350951203,1738235441561,-500.0,0.00018563,2]
[350951204,1738235441570,-500.0,0.00018563,2]
[350951205,1738235441579,-362.83214186,0.00018563,2]
[350951206,1738235441589,-500.0,0.00018567,2]
[350951207,1738235441599,-861.96,0.00018568,2]
[350951208,1738235441608,-635.38,0.00018569,2]
[350951209,1738235441619,-500.0,0.00018569,2]
[350951210,1738235441628,-500.0,0.00018569,2]
[350951211,1738235441637,-500.91029033,0.00018569,2]
[350951212,1738235441647,-500.0,0.00018569,2]
[350951213,1738235441656,-500.0,0.000187,2]
[350951214,1738235441666,-500.0,0.000187,2]
[350951215,1738235441674,-500.0,0.000187,2]
[350951216,1738235441683,-505.82860677,0.000187,2]
[350951217,1738235441693,-500.0,0.000187,2]
[350951218,1738235441703,-500.0,0.000187,2]
[350951219,1738235441715,-500.0,0.000187,2]
[350951220,1738235441725,-500.0,0.000187,2]
[350951221,1738235441734,-500.0,0.000187,2]
[350951222,1738235441743,-500.0,0.000187,2]
[350951223,1738235441753,-205.06742631,0.000187,2]
[350951224,1738235441764,-500.0,0.000187,2]
[350951225,1738235441776,-500.0,0.000187,2]
[350951226,1738235441786,-500.0,0.000187,2]
[350951227,1738235441795,-500.0,0.000187,2]
[350951228,1738235441804,-500.0,0.000187,2]
[350951229,1738235441814,-625.54320332,0.000187,2]
[350951230,1738235441823,-500.0,0.000187,2]
[350951231,1738235441834,-507.07728348,0.000187,2]
[350951232,1738235441848,-500.0,0.000187,2]
[350951233,1738235441858,-500.0,0.000187,2]
[350951234,1738235441867,-500.0,0.000187,2]
[350951235,1738235441877,-500.0,0.000187,2]
[350951236,1738235441886,-500.0,0.000187,2]
[350951237,1738235441896,-500.0,0.000187,2]
[350951238,1738235441906,-500.0,0.000187,2]
[350951239,1738235441916,-500.0,0.000187,2]
[350951240,1738235441925,-500.0,0.000187,2]
[350951241,1738235441935,-500.0,0.000187,2]
[350951242,1738235441944,-500.0,0.000187,2]
[350951243,1738235441954,-500.0,0.000187,2]
[350951244,1738235441967,-500.0,0.000187,2]
[350951245,1738235441977,-500.0,0.000187,2]
[350951246,1738235441987,-500.0,0.000187,2]
[350951247,1738235441996,-500.0,0.000187,2]
[350951248,1738235442007,-500.0,0.000187,2]
[350951249,1738235442016,-500.0,0.000187,2]
[350951250,1738235442026,-500.0,0.000187,2]
[350951251,1738235442039,-500.0,0.000187,2]
[350951252,1738235442049,-612.01725897,0.000187,2]
[350951253,1738235442058,-500.0,0.000187,2]
[350951254,1738235442068,-500.0,0.000187,2]
[350951255,1738235442078,-1079.29,0.000187,2]
[350951256,1738235442088,-500.0,0.000187,2]
[350951257,1738235442097,-500.0,0.000187,2]
[350951258,1738235442108,-500.0,0.000187,2]
[350951259,1738235442117,-500.0,0.000187,2]
[350951260,1738235442127,-500.0,0.000187,2]
[350951261,1738235442136,-500.0,0.000187,2]
[350951262,1738235442145,-510.52594521,0.000187,2]
[350951263,1738235442155,-501.08707548,0.000187,2]
[350951264,1738235442165,-523.66185669,0.000187,2]
[350951265,1738235442175,-500.0,0.000187,2]
[350951266,1738235442185,-567.20981408,0.00018704,2]
[350951267,1738235442195,-635.38,0.00018706,2]
[350951268,1738235442205,-500.0,0.00018706,2]
[350951269,1738235442217,-861.96,0.00018771,2]
[350951270,1738235442227,-19128.12144466,0.0001881,2]
[350951271,1738235442373,-395.0,0.00017537,2]
[350951272,1738235442384,-148.17434545,0.00018562,2]
[350951273,1738235442395,-1051.82565455,0.00018562,2]
[350951274,1738235442404,-282.17434396,0.00018563,2]
[350951275,1738235442428,-217.82565604,0.00018563,2]
[350951276,1738235442437,-558.88089136,0.0001881,2]
[350951277,1738235442451,-2901.85660327,0.0001881,2]
[350951278,1738235442464,-210.74363749,0.00018822,2]
[350951279,1738235442481,-1079.29,0.00018837,2]
[350951280,1738235442490,-635.38,0.00018843,2]
[350951281,1738235442501,-500.0,0.00018843,2]
[350951282,1738235442511,-1434.44383198,0.000189,2]
[350951283,1738235442522,-1079.29,0.00018974,2]
[350951284,1738235442532,-635.38,0.0001898,2]
[350951285,1738235442541,-500.0,0.0001898,2]
[350951286,1738235442551,-155.166,0.00019,2]
[350951287,1738235442561,-500.31387532,0.0001907,2]
[350951288,1738235442569,-1079.29,0.00019111,2]
[350951289,1738235442579,-635.38,0.00019117,2]
[350951290,1738235442589,-500.0,0.00019117,2]
[350951291,1738235442598,-500.0,0.00019178,7]
[350951292,1738235442607,-291.966195,0.00019178,2]
[350951293,1738235442618,-210.74363749,0.00019182,2]
[350951294,1738235442627,-1079.29,0.00019248,2]
[350951295,1738235442636,-635.38,0.00019254,2]
[350951296,1738235442645,-500.0,0.00019254,2]
[350951297,1738235442655,-386.00051063,0.0001928,2]
[350951298,1738235442665,-1079.29,0.00019385,2]
[350951299,1738235442675,-191.2031032,0.00019389,2]
[350951300,1738235442684,-635.38,0.00019391,2]
[350951301,1738235442694,-500.0,0.00019391,2]
[350951302,1738235442703,-1191.37054974,0.00019479,2]
[350951303,1738235442715,-420.0,0.00019513,2]
[350951304,1738235442725,-1079.29,0.00019522,2]
[350951305,1738235442734,-500.0,0.00019526,2]
[350951306,1738235442744,-500.0,0.00019526,2]
[350951307,1738235442754,-783.32,0.00019526,2]
[350951308,1738235442764,-217.88683359,0.00019526,2]
[350951309,1738235442774,-635.38,0.00019528,2]
[350951310,1738235442784,-227.37,0.00019528,2]
[350951311,1738235442794,-210.74363749,0.00019541,2]
[350951312,1738235442804,-1191.37054974,0.00019579,2]
[350951313,1738235442814,-1079.29,0.00019659,2]
[350951314,1738235442824,-306.0,0.0001966,2]
[350951315,1738235442833,-635.38,0.00019665,2]
[350951316,1738235442843,-1191.37054974,0.00019679,2]
[350951317,1738235442852,-1191.37054974,0.00019779,2]
[350951318,1738235442861,-1079.29,0.00019796,2]
[350951319,1738235442870,-6154.64265986,0.000198,2]
[350951320,1738235442879,-635.38,0.00019802,2]
[350951321,1738235442889,-845.94121545,0.00019809,2]
[350951322,1738235442899,-861.96,0.00019824,2]
[350951324,1738235442908,-500.0,0.00019863,9]
[350951326,1738235442918,-1191.37054974,0.00019879,2]
[350951327,1738235442927,-861.96,0.00019898,2]
[350951328,1738235442937,-500.0,0.00019899,2]
[350951329,1738235442946,-500.0,0.00019899,2]
[350951330,1738235442958,-500.0,0.00019899,2]
[350951331,1738235442967,-594.2011352,0.00019899,2]
[350951332,1738235442977,-783.32,0.00019899,2]
[350951333,1738235442987,-783.32,0.00019899,2]
[350951334,1738235442996,-861.96,0.00019899,2]
[350951335,1738235443108,-861.96,0.00019899,2]
[350951336,1738235443119,-540.16,0.00019899,2]
[350951337,1738235443129,-230.51427286,0.00019899,2]
[350951338,1738235443139,-500.0,0.00019899,2]
[350951339,1738235443148,-500.0,0.00019899,2]
[350951340,1738235443158,-440.83627558,0.00019899,2]
[350951341,1738235443167,-153.4,0.000199,31]
[350951342,1738235443176,-153.4,0.000199,31]
[350951343,1738235443185,-153.4,0.000199,31]
[350951344,1738235443195,-153.4,0.000199,31]
[350951345,1738235443204,-153.4,0.000199,31]
[350951346,1738235443214,-153.4,0.000199,31]
[350951347,1738235443224,-153.4,0.000199,31]
[350951348,1738235443234,-153.4,0.000199,31]
[350951349,1738235443243,-153.4,0.000199,31]
[350951350,1738235443254,-153.4,0.000199,31]
[350951351,1738235443263,-153.4,0.000199,31]
[350951352,1738235443272,-153.4,0.000199,31]
[350951353,1738235443282,-153.4,0.000199,31]
[350951354,1738235443291,-153.4,0.000199,31]
[350951355,1738235443302,-37027.60958867,0.000199,2]
[350951356,1738235443311,-210.74363749,0.000199,2]
[350951357,1738235443322,-1079.29,0.00019933,2]
[350951358,1738235443332,-635.38,0.00019939,2]
[350951359,1738235443342,-500.0,0.00019973,2]
[350951360,1738235443351,-500.0,0.00019973,2]
[350951361,1738235443361,-1191.37054974,0.00019979,2]
[350951362,1738235443371,-500.0,0.00019997,2]
[350951363,1738235443382,-500.0,0.00019997,2]
[350951364,1738235443391,-783.32,0.00019997,2]
[350951365,1738235443402,-783.32,0.00019997,2]
[350951366,1738235443412,-861.96,0.00019997,2]
[350951368,1738235443421,-861.96,0.00019997,2]
[350951369,1738235443431,-861.96,0.00019998,2]
[350951371,1738235443442,-861.96,0.00019998,2]
[350951373,1738235443451,-151.0,0.00019999,2]
[350951375,1738235443461,-500.0,0.00019999,2]
[350951377,1738235443470,-601.49407495,0.00019999,2]
[350951378,1738235443479,-783.32,0.00019999,2]
[350951379,1738235443488,-783.32,0.00019999,2]
[350951380,1738235443498,-783.32,0.00019999,2]
[350951381,1738235443507,-783.32,0.00019999,2]
[350951382,1738235443516,-783.32,0.00019999,2]
[350951383,1738235443526,-783.32,0.00019999,2]
[350951384,1738235443535,-783.32,0.00019999,2]
[350951385,1738235443554,-783.32,0.00019999,2]
[350951387,1738235443566,-783.32,0.00019999,2]
[350951389,1738235443577,-783.32,0.00019999,2]
[350951391,1738235443588,-783.32,0.00019999,2]
[350951392,1738235443598,-783.32,0.00019999,2]
[350951394,1738235443609,-783.32,0.00019999,2]
[350951395,1738235443619,-783.32,0.00019999,2]
[350951396,1738235443628,-783.32,0.00019999,2]
[350951397,1738235443637,-783.32,0.00019999,2]
[350951398,1738235443647,-783.32,0.00019999,2]
[350951399,1738235443657,-783.50279773,0.00019999,2]
[350951400,1738235443667,-861.96,0.00019999,2]
[350951401,1738235443678,-861.96,0.00019999,2]
[350951402,1738235443687,-861.96,0.00019999,2]
[350951403,1738235443697,-861.96,0.00019999,2]
[350951404,1738235443706,-861.96,0.00019999,2]
[350951405,1738235443717,-861.96,0.00019999,2]
[350951407,1738235443726,-861.96,0.00019999,2]
[350951408,1738235443736,-861.96,0.00019999,2]
[350951409,1738235443747,-861.96,0.00019999,2]
[350951410,1738235443757,-862.11248851,0.00019999,2]
[350951411,1738235443767,-922.35494728,0.0002,5]
[350951412,1738235443780,-697.53724156,0.0002,5]
[350951413,1738235443797,-5916.4563973,0.0002,5]
[350951414,1738235444390,-4462.53238684,0.0002,5]
[350951415,1738235444401,-2560.47024896,0.0002,5]
[350951416,1738235444411,-6813.48673716,0.0002,5]
[350951417,1738235444420,-117732.55321259,0.0002,2]
[350951418,1738235444432,-1601.06569073,0.0002,2]
[350951419,1738235444444,-2451.12863605,0.0002,2]
[350951420,1738235444493,-77967.67406248,0.0002,2]
[350951421,1738235444503,-4863.0,0.0002,3]
[350951422,1738235444512,-4863.0,0.0002,3]
[350951423,1738235444523,-4863.0,0.0002,3]
[350951424,1738235444534,-4863.0,0.0002,3]
[350951425,1738235444544,-4863.0,0.0002,3]
[350951426,1738235444555,-4863.0,0.0002,3]
[350951427,1738235444566,-1000.00610211,0.0002,3]
[350951428,1738235444576,-2153.0,0.0002,3]
[350951429,1738235444585,-1237.41591955,0.0002,3]
[350951430,1738235444596,-319.95599936,0.0002,3]
[350951431,1738235444609,-594.62808109,0.0002,3]
[350951432,1738235444618,-2152.0,0.0002,3]
[350951433,1738235444627,-1055.67906273,0.0002,3]
[350951434,1738235444678,-346.525888,0.00018019,2]
[350951435,1738235444689,-154.56147471,0.00018019,2]
[350951436,1738235444698,-501.3717117,0.00018563,2]
[350951437,1738235444708,-500.0,0.00018563,2]
[350951438,1738235444717,-1096.32093727,0.0002,3]
[350951439,1738235444726,-40262.44179183,0.0002,2]
[350951440,1738235444737,-4998.84196532,0.0002,2]
[350951441,1738235444747,-312.0240527,0.0002,7]
[350951442,1738235444756,-4304.18,0.0002,2]
[350951443,1738235444765,-2461.35855443,0.0002,2]
[350951458,1738235446409,-500.0,0.00018563,2]
[350951459,1738235446420,-347.34448083,0.00018563,2]
[350951461,1738235446430,-500.0,0.000187,2]
[350951462,1738235446440,-2676.55144557,0.0002,2]
[350951464,1738235446450,-160.0,0.0002,2]
[350951465,1738235446460,-167.221,0.0002,2]
[350951466,1738235446470,-3148.97547429,0.0002,7]
[350951467,1738235446480,-167.092,0.0002,2]
[350951468,1738235446490,-188.0,0.0002,2]
[350951469,1738235446500,-188.0,0.0002,2]
[350951470,1738235446509,-188.0,0.0002,2]
[350951471,1738235446519,-188.0,0.0002,2]
[350951472,1738235446529,-188.0,0.0002,2]
[350951473,1738235446539,-188.0,0.0002,2]
[350951474,1738235446548,-188.0,0.0002,2]
[350951475,1738235446558,-188.0,0.0002,2]
[350951476,1738235446567,-188.0,0.0002,2]
[350951478,1738235446577,-188.0,0.0002,2]
[350951479,1738235446586,-188.0,0.0002,2]
[350951480,1738235446595,-188.0,0.0002,2]
[350951481,1738235446605,-188.0,0.0002,2]
[350951482,1738235446615,-188.0,0.0002,2]
[350951483,1738235446626,-188.0,0.0002,2]
[350951484,1738235446636,-188.0,0.0002,2]
[350951485,1738235446646,-20942.0,0.0002,2]
[350951486,1738235446655,-1000.0,0.0002,5]
[350951487,1738235446664,-151.42429694,0.0002,2]
[350951488,1738235446674,-150.0,0.0002,2]
[350951489,1738235446684,-160.0,0.0002,3]
[350951490,1738235446693,-1079.29,0.0002007,2]
[350951491,1738235446703,-188.0,0.00020075,2]
[350951492,1738235446713,-635.38,0.00020076,2]
[350951493,1738235446722,-1191.37054974,0.00020079,2]
[350951494,1738235446732,-151.0,0.000201,4]
[350951495,1738235446741,-150.14,0.00020135,2]
[350951496,1738235446750,-150.11,0.00020135,2]
[350951497,1738235446759,-150.14,0.00020135,2]
[350951498,1738235446769,-150.11,0.00020135,2]
[350951499,1738235446779,-150.11,0.00020135,2]
[350951500,1738235446788,-150.11,0.00020135,2]
[350951501,1738235446797,-150.11,0.00020135,2]
[350951502,1738235446807,-469.938932,0.00020153,15]
[350951503,1738235446816,-1191.37054974,0.00020179,2]
[350951504,1738235446826,-1079.29,0.00020207,2]
[350951505,1738235446835,-188.0,0.00020212,2]
[350951506,1738235446845,-635.38,0.00020213,2]
[350951507,1738235446854,-354.2307862,0.00020274,2]
[350951508,1738235446864,-354.2307862,0.00020274,2]
[350951509,1738235446873,-352.5085705,0.00020274,2]
[350951510,1738235446883,-500.0,0.00020274,2]
[350951511,1738235446893,-150.11,0.00020274,2]
[350951512,1738235446902,-1191.37054974,0.00020279,2]
[350951513,1738235446911,-151.0,0.000203,4]
[350951514,1738235446921,-1079.29,0.00020344,2]
[350951515,1738235446930,-188.0,0.00020349,2]
[350951516,1738235446939,-635.38,0.0002035,2]
[350951517,1738235446949,-1191.37054974,0.00020379,2]
[350951518,1738235446959,-151.0,0.000204,3]
[350951519,1738235446969,-150.11,0.00020409,2]
[350951520,1738235446979,-150.11,0.00020409,2]
[350951521,1738235446989,-150.11,0.00020409,2]
[350951522,1738235446998,-150.11,0.00020409,2]
[350951523,1738235447010,-209.0600807,0.00020438,2]
[350951524,1738235447019,-199.987389,0.00020447,2]
[350951525,1738235447030,-11222.41085856,0.0002045,2]
[350951526,1738235447044,-1191.37054974,0.00020479,2]
[350951527,1738235447054,-1079.29,0.00020481,2]
[350951528,1738235447064,-197.05469702,0.00020486,2]
[350951529,1738235447073,-635.38,0.00020487,2]
[350951530,1738235447083,-4998.84196532,0.000205,2]
[350951531,1738235447092,-151.0,0.000205,4]
[350951532,1738235447101,-512.22115367,0.00020521,2]
[350951533,1738235447111,-1000.0,0.00020521,2]
[350951534,1738235447120,-395.0,0.00020537,2]
[350951535,1738235447130,-500.0,0.00020547,11]
[350951536,1738235447139,-651.90526139,0.00020548,2]
[350951537,1738235447149,-1191.37054974,0.00020579,2]
[350951538,1738235447158,-151.0,0.000206,4]
[350951539,1738235447167,-8415.53330543,0.0002061,2]
[350951540,1738235447179,-21638.39458145,0.0002061,2]
[350951541,1738235447191,-838.14390917,0.0002061,2]
[350951542,1738235447249,-10498.23265012,0.0002061,2]
[350951543,1738235447259,-1079.29,0.00020618,2]
[350951544,1738235447268,-635.38,0.00020624,2]
[350951545,1738235447278,-501.36220374,0.00020674,2]
[350951546,1738235447288,-1191.37054974,0.00020679,2]
[350951547,1738235447298,-200.18652217,0.00020683,2]
[350951548,1738235447402,-199.81,0.00020683,2]
[350951549,1738235447414,-201.45749211,0.00020683,2]
[350951550,1738235447424,-202.91092672,0.00020683,2]
[350951551,1738235447434,-1074.97160708,0.0002074,7]
[350951552,1738235447443,-1079.29,0.00020755,2]
[350951553,1738235447453,-635.38,0.00020761,2]
[350951554,1738235447463,-1191.37054974,0.00020779,2]
[350951555,1738235447473,-23664.93042945,0.0002079,2]
[350951556,1738235447483,-151.0,0.000208,4]
[350951557,1738235447492,-1191.37054974,0.00020879,2]
[350951558,1738235447501,-1079.29,0.00020892,2]
[350951559,1738235447511,-635.38,0.00020898,2]
[350951560,1738235447521,-3000.0,0.000209,2]
[350951561,1738235447530,-159.56539924,0.000209,2]
[350951562,1738235447540,-151.0,0.000209,4]
[350951563,1738235447549,-2332.16408404,0.000209,2]
[350951564,1738235447559,-595.31891355,0.00020973,2]
[350951565,1738235447568,-500.0,0.00020973,2]
[350951566,1738235447578,-500.0,0.00020973,2]
[350951567,1738235447587,-500.0,0.00020973,2]
[350951568,1738235447596,-1191.37054974,0.00020979,2]
[350951569,1738235447606,-1000.0,0.00021,21]
[350951570,1738235447615,-6700.0,0.00021,2]
[350951571,1738235447625,-264.20461412,0.00021,2]
[350951572,1738235447635,-238.1735692,0.00021,2]
[350951573,1738235447644,-7757.24449065,0.00021,2]
[350951574,1738235447653,-19321.57368551,0.00021,2]
[350951575,1738235447663,-500.0,0.00021,2]
[350951576,1738235447674,-500.0,0.00021,2]
[350951577,1738235447684,-500.0,0.00021,2]
[350951578,1738235447693,-500.0,0.00021,2]
[350951579,1738235447703,-500.0,0.00021,2]
[350951580,1738235447713,-500.0,0.00021,2]
[350951581,1738235447723,-500.0,0.00021,2]
[350951582,1738235447733,-500.0,0.00021,2]
[350951583,1738235447744,-500.0,0.00021,2]
[350951584,1738235447754,-500.0,0.00021,2]